Cogmind - Beta 13 @@@ ROGUE MODE // 2024.04.03 @ 17:31:49 Player: djrubbie Result: Destroyed by D5-O0N(R) with Subdweller Laser Performance ------------- Evolutions (0) 0 Regions Visited (2) 400 Robots Destroyed (22) 110 Value Destroyed (640) 640 Prototype IDs (0) 0 Alien Tech Used (0) 0 Bonus (0) 0 TOTAL SCORE: 1150 Bonus ------- None Cogmind --------- Core Integrity 0/250 Matter 53/300 Energy 94/100 System Corruption 2% Temperature Hot (255) Movement Core (400) Ox7 Location -10/Subcaves Parts ------- > --- POWER (1) -------- (None) > --- PROPULSION (2) --- (None) > --- UTILITY (2) ------ Large Storage Unit > --- WEAPON (2) ------- Makeshift Laser > --- INVENTORY (15) --- Aluminum Leg Improved Heat Sink High-capacity Storage Unit Visual Processing Unit Subdweller Optics Sensor Array Sensor Array Improved Terrain Scanner Seismic Detector Improved Targeting Computer Improved Targeting Computer ECM Suite Medium Laser Subdweller Beam Cannon Battle Cannon Peak State ------------ > --- POWER ------------ Subdweller Power Source > --- PROPULSION ------- Aluminum Leg Aluminum Leg > --- UTILITY ---------- Large Storage Unit Makeshift Light Armor Plating > --- WEAPON ----------- Makeshift Laser Battle Rifle > --- INVENTORY -------- Aluminum Leg Improved Heat Sink High-capacity Storage Unit Visual Processing Unit Subdweller Optics Sensor Array Sensor Array Improved Terrain Scanner Seismic Detector Improved Targeting Computer Improved Targeting Computer ECM Suite Medium Laser Subdweller Beam Cannon Battle Cannon [Rating: 17] Favorites ----------- Power Light Nuclear Core Engine Subdweller Power Source Power Core Light Nuclear Core Propulsion Aluminum Leg Leg Aluminum Leg Utility Large Storage Unit Device Sensor Array Storage Large Storage Unit Protection Makeshift Light Armor Plating Weapon Medium Laser Energy Gun Medium Laser Ballistic Gun Battle Rifle Ballistic Cannon Battle Cannon Launcher Subdweller Shrapnel Launcher Build | -11 -10 -10 ------- Run | Yrd Mat Sub Slots Evolved . | . . . Power . | . . . Propulsion . | . . . Utility . | . . . Weapon . | . . . Parts Attached 31 | 9 9 13 Power 4 | 1 1 2 Engine 3 | 1 . 2 Core 1 | . 1 . Reactor . | . . . Propulsion 8 | 2 4 2 Treads . | . . . Leg 8 | 2 4 2 Wheel . | . . . Hover . | . . . Flight . | . . . Utility 9 | 3 2 4 Device 3 | 2 1 . Storage 4 | 1 1 2 Processor . | . . . Hackware . | . . . Protection 2 | . . 2 Artifact . | . . . Weapon 10 | 3 2 5 Energy Gun 7 | 3 2 2 Energy Cannon . | . . . Ballistic Gun 1 | . . 1 Ballistic Cannon 1 | . . 1 Launcher 1 | . . 1 Special Weapon . | . . . Impact Weapon . | . . . Slashing Weapon . | . . . Piercing Weapon . | . . . Special Melee Weapon . | . . . Unidentified Prototypes . | . . . Parts Lost 11 | . . 11 Power 2 | . . 2 Propulsion 3 | . . 3 Utility 2 | . . 2 Weapon 4 | . . 4 Highest Loss Streak 5 | . . 5 To Critical Strikes . | . . . Average Slot Usage (%) 96 | . 99 95 Engine 6 | . 4 6 Core 5 | . 9 3 Leg 27 | . 28 27 Device 7 | . 14 3 Storage 14 | . 14 14 Protection 6 | . . 10 Energy Gun 21 | . 27 17 Ballistic Gun 1 | . . 2 Ballistic Cannon 2 | . . 3 Launcher 3 | . . 4 Naked Turns . | . . . Heaviest Build 42 | 13 30 42 Greatest Support 20 | 20 20 20 Greatest Overweight (x) 3 | 3 1 2 Average Overweight (x) . | . . 1 Largest Inventory Capacity 20 | 8 15 20 Average Capacity 14 | 7 14 15 Most Carried 15 | 3 15 15 Average Carried 11 | . 8 14 Final Capacity 15 | 8 15 15 Final Carried 15 | 1 15 15 Class Distribution -------------------- 100% | Mutant Dominant Class ---------------- Mutant | -10/Materials Mutant | -10/Subcaves Resources | -11 -10 -10 ----------- Run | Yrd Mat Sub Matter Collected 608 | 290 90 228 Remotely . | . . . Salvage Created 642 | 121 237 284 Parts 48 | 8 7 33 Haulers Intercepted . | . . . Recyclers Shooed 2 | 2 . . Parts Field Recycled . | . . . Retrieved Matter . | . . . Parts Self-Destructed 5 | . . 5 Prevented . | . . . Kills | -11 -10 -10 ------- Run | Yrd Mat Sub Combat Hostiles Destroyed 18 | . 5 13 Guns 11 | . 5 6 Cannons 1 | . . 1 AOE 6 | . . 6 Classes Destroyed 5 | 2 1 2 Tunneler 3 | 3 . . Recycler 1 | 1 . . Swarmer 3 | . . 3 Grunt 5 | . 5 . Subdweller 10 | . . 10 Best Kill Streak 5 | 2 5 3 Combat Bots Only 5 | . 5 3 Max Kills in Single Turn 2 | 1 1 2 Gunslinging . | . . . Exploded 2 | . . 2 Melee . | . . . Uniques/NPCs Destroyed . | . . . Combat | -11 -10 -10 -------- Run | Yrd Mat Sub Hostile Shots Fired 102 | . 23 79 Missed 32 | . 8 24 Damage Taken 1844 | . 165 1679 Core 256 | . 32 224 Absorbed by Shields . | . . . Regen/Repaired (Parts) 56 | . 56 . Core Remaining (%) 100 | 100 . . Volleys Fired 84 | 18 14 52 Largest 2 | 2 2 2 Hottest 100 | 90 90 100 Shots Fired 144 | 23 28 93 Gun 115 | 23 28 64 Cannon 17 | . . 17 Launcher 12 | . . 12 Special . | . . . Kinetic 41 | . . 41 Thermal 83 | 18 14 51 Explosive . | . . . Electromagnetic 20 | 5 14 1 Robot Hit Streak 12 | 8 4 12 Robot Miss Streak 3 | 3 3 3 Penetration Max . | . . . Secondary Targets . | . . . Shots Hit Robots 90 | 15 16 59 Core Hits 41 | 5 10 26 Critical Kills . | . . . Critical Parts Destroyed . | . . . Critical Strikes 7 | 2 2 3 Burn 7 | 2 2 3 Melee Attacks . | . . . Impact . | . . . Slashing . | . . . Piercing . | . . . Sneak Attacks . | . . . Combat Hostiles . | . . . Follow-up Attacks . | . . . Damage Inflicted 1680 | 185 218 1277 Guns 900 | 185 218 497 Cannons 195 | . . 195 Explosions 585 | . . 585 Melee . | . . . Ramming . | . . . Kinetic 910 | . . 910 Thermal 665 | 173 125 367 Explosive . | . . . Electromagnetic 105 | 12 93 . Impact . | . . . Slashing . | . . . Piercing . | . . . Highest Corruption 2 | . 2 2 Average Corruption 2 | . 2 2 Corruption Purged . | . . . Corruption Blocked . | . . . Effects 22 | . 1 21 Message Errors 6 | . . 6 Matter Fused 4 | . . 4 Heat Flow Errors 5 | . . 5 Energy Discharges 1 | . . 1 Data Loss (minor) 4 | . 1 3 Misfires 2 | . . 2 Overload Shots . | . . . Overflow Damage 12 | . . 12 Projectiles . | . . . Explosions 12 | . . 12 Melee . | . . . Knockbacks 1 | . . 1 Impact . | . . . Kinetic 1 | . . 1 Secondary . | . . . Self-Inflicted Damage 25 | . . 25 Shots 1 | . . 1 Rammed . | . . . Targets Rammed . | . . . Kicked . | . . . Crushed . | . . . Highest Temperature 395 | 120 395 269 Average Temperature 106 | 45 181 70 Received Heat Transfer 700 | . 93 607 Effects 1 | . 1 . Shutdowns 1 | . 1 . Siege Activations . | . . . Robots Corrupted . | . . . Combat Hostiles . | . . . Parts Fried . | . . . Impact Corruptions . | . . . Robots Melted . | . . . Combat Hostiles . | . . . Parts Melted 8 | 2 4 2 Heat Transferred 2368 | 666 518 1184 Parts Sabotaged . | . . . Parts Stolen . | . . . Parts Stripped . | . . . Power Chain Reactions . | . . . Alert | -11 -10 -10 ------- Run | Yrd Mat Sub Peak Influence 158 | 20 158 . Initial 13 | . 13 . Average 47 | 10 55 . Maximum Alert Level . | . . . Low Security (%) 100 | 100 100 . Level 1 . | . . . Level 2 . | . . . Level 3 . | . . . Level 4 . | . . . Level 5 . | . . . High Security . | . . . Max Security . | . . . Squads Dispatched 3 | . 3 . Investigation 1 | . 1 . Extermination . | . . . Reinforcement 2 | . 2 . Assault . | . . . Garrison . | . . . Intercept . | . . . Searches Triggered . | . . . Construction Impeded . | . . . Haulers Reinforced . | . . . Active Scanning Responses . | . . . Cargo Convoy Interrupts . | . . . Stealth | -11 -10 -10 --------- Run | Yrd Mat Sub Distress Signals 1 | . 1 . Communications Jammed . | . . . Distress Signals . | . . . Times Spotted 21 | . 7 14 Peak Tracking Total 3 | . 2 3 Tactical Retreats 1 | . . 1 Traps | -11 -10 -10 ------- Run | Yrd Mat Sub Traps Triggered 3 | . 3 . Indirectly . | . . . Trap Hack Attempts . | . . . Triggered . | . . . Disarmed . | . . . Reprogrammed . | . . . Reused . | . . . Traps Extracted . | . . . Installed . | . . . Triggered . | . . . Machines | -11 -10 -10 ---------- Run | Yrd Mat Sub Machines Disabled . | . . . Max in Single Turn . | . . . Machines Repaired . | . . . Machines Dismantled . | . . . Machines Sabotaged . | . . . Overloaded Fab Kills . | . . . Hacking | -11 -10 -10 --------- Run | Yrd Mat Sub Machines Accessed 3 | . 3 . Terminals 1 | . 1 . Fabricators . | . . . Repair Stations 1 | . 1 . Recycling Units 1 | . 1 . Scanalyzers . | . . . Garrison Access . | . . . Total Hacks 10 | . 10 . Successful 9 | . 9 . Failed 1 | . 1 . Catastrophic . | . . . Database Lockouts . | . . . Manual . | . . . Terminals 1 | . 1 . Fabricators . | . . . Repair Stations 7 | . 7 . Recycling Units 2 | . 2 . Scanalyzers . | . . . Garrison Access . | . . . Terminal Hacks 1 | . 1 . Record 1 | . 1 . Fabricator Hacks . | . . . Repair Station Hacks 6 | . 6 . Scan Component 3 | . 3 . Repair 3 | . 3 . Recycling Unit Hacks 2 | . 2 . Report Inventory 1 | . 1 . Retrieve Components 1 | . 1 . Scanalyzer . | . . . Garrison Access Hacks . | . . . Unauthorized Hacks . | . . . Terminals . | . . . Fabricators . | . . . Repair Stations . | . . . Recycling Units . | . . . Scanalyzers . | . . . Garrison Access . | . . . Data Cores Recovered . | . . . Used . | . . . Hacking Detections 1 | . 1 . Full Trace Events . | . . . Feedback Events . | . . . Feedback Blocked . | . . . Robot Schematics Acquired . | . . . Robots Built . | . . . Authchips . | . . . Time . | . . . Total Robot Build Rating . | . . . Part Schematics Acquired . | . . . Parts Built . | . . . Authchips . | . . . Time . | . . . Total Part Build Rating . | . . . Parts Repaired 3 | . 3 . Time 78 | . 78 . Parts Recycled . | . . . Recycled Matter . | . . . Retrieved Matter . | . . . Retrieved Components 9 | . 9 . Parts Scanalyzed . | . . . Part Schematics Acquired . | . . . Parts Damaged . | . . . Bothacking | -11 -10 -10 ------------ Run | Yrd Mat Sub Used RIF Installer . | . . . Robots Hacked . | . . . Non-combat . | . . . Combat . | . . . Robot Hacks Applied . | . . . Relay Couplers Released . | . . . Fabnet Peak Effective % . | . . . Robots Rewired . | . . . Allies Hacked . | . . . Hacks Repelled . | . . . Allies | -11 -10 -10 -------- Run | Yrd Mat Sub Total Allies . | . . . Largest Group . | . . . Highest-Rated Group . | . . . Highest-Rated Ally . | . . . Total Orders . | . . . Ally Attacks . | . . . Total Damage . | . . . Kills . | . . . Allies Corrupted . | . . . Allies Melted 1 | . . 1 Intel | -11 -10 -10 ------- Run | Yrd Mat Sub Robot Analysis Total . | . . . Derelict Logs Recovered 2 | . . 2 Drone Launches . | . . . Drone Recoveries . | . . . Exploration | -11 -10 -10 ------------- Run | Yrd Mat Sub Turns Passed 2566 | 205 887 1474 Spaces Moved 1159 | 123 403 633 Core 10 | 10 . . Treads . | . . . Legs 1149 | 113 403 633 Wheels . | . . . Hover . | . . . Flight . | . . . Fastest Speed 50 | 50 120 190 Average Speed 181 | 119 178 194 Slowest Speed 260 | 200 190 260 Overloaded Moves . | . . . Propulsion Burnouts . | . . . Robots Hopped . | . . . Cave-ins Triggered . | . . . Exploration Rate (%) 36 | 6 68 35 Regions Visited 2 Branch Regions 1 Pre-discovered Areas . | . . . Known Exits Taken . | . . . Unknown Exits Taken 2 | 1 1 . Scrap Searched . | . . . Spaces Dug . | . . . Terrain Destroyed 105 | . . 105 Melee . | . . . Projectile 1 | . . 1 AOE 104 | . . 104 Terrain Rammed . | . . . Walls Destroyed . | . . . Machines Disabled . | . . . Actions | -11 -10 -10 --------- Run | Yrd Mat Sub Total 1481 | 157 540 784 Wait 161 | . 93 68 Move 1157 | 122 402 633 Hop . | . . . Pick Up 40 | 8 20 12 Fast Attach . | . . . Attach 16 | 7 2 7 Detach . | . . . Swap 15 | 2 7 6 Drop 8 | . 2 6 Fire 84 | 18 14 52 Melee . | . . . Ram . | . . . Kick . | . . . Crush . | . . . Escape Stasis . | . . . Rewire . | . . . Trap . | . . . Miscellaneous . | . . . Route ------- -11/Scrapyard -10/Materials (discovered 3 exits: [*Mat] / [*Min] / [*Sub]) -10/Subcaves (discovered 1 exit: Rec) History --------- Turn | Location | Event 13 | -11/Scrapyard | Discovered new exit (range 15) 206 | -11/Scrapyard | Entered Materials 253 | -10/Materials | Discovered new exit (range 15) 314 | -10/Materials | Build established: Mutant 614 | -10/Materials | Discovered new exit (range 16) 659 | -10/Materials | Repaired Med. Laser 687 | -10/Materials | Repaired Aluminum Leg 715 | -10/Materials | Repaired Aluminum Leg 1083 | -10/Materials | Discovered new exit (range 5) 1093 | -10/Materials | Entered Subcaves 1123 | -10/Subcaves | Shifting Twisted Machinery released Battle Rifle 1125 | -10/Subcaves | Shifting Twisted Machinery released Mak. Light Armor Plating 1758 | -10/Subcaves | Shifting Twisted Machinery released Battle Cannon 2110 | -10/Subcaves | Identified exit to Recycling 2154 | -10/Subcaves | Core integrity fell below 50% 2499 | -10/Subcaves | Learned location of 1 exit from Materials 2540 | -10/Subcaves | A Subdweller sparked back to life 2540 | -10/Subcaves | A Subdweller sparked back to life 2562 | -10/Subcaves | Core integrity fell below 20% 2567 | -10/Subcaves | Destroyed by D5-O0N(R) with Subdweller Laser Last Messages --------------- consequences. Acquired derelict log, extracted data. Data stored: Materials exits (x1). D5-O0N(R) creaks and sparks as it begins to move. WR-2QE(R) creaks and sparks as it begins to move. :E%<&#J8EZEU3%T2